fUST/lending_fUST_20240506
["ID","MTS","AMOUNT","RATE_DAILY","PERIOD"]
[326488677,1714996327660,154.7215013,9.999e-05,2]
[326488678,1714996575157,465.09462597,9.999e-05,2]
[326488679,1714996709956,857.97178251,9.999e-05,2]
[326488680,1714996931438,154.7215013,9.999e-05,2]
[326488681,1714997201659,447.00329869,9.999e-05,2]
[326488684,1714997426105,803.80570875,9.999e-05,2]
[326488724,1714997432786,-1967.2358906,0.00014783,2]
[326488776,1714997438249,-492.38876262,0.00014783,2]
[326488778,1714997438259,-447.00329869,0.00014784,2]
[326488779,1714997438268,-8584.89619881,0.00014786,2]
[326488780,1714997438280,-7174.60002918,0.00014786,2]
[326488781,1714997438296,-3924.23233682,0.00014786,2]
[326488785,1714997443102,-824.74,0.00014786,2]
[326488835,1714997446597,-4391.53143519,0.00014786,2]
[326488836,1714997446607,-238.542365,0.00015147,2]
[326488837,1714997446616,-136.12080755,0.00016338,2]
[326488843,1714997446687,-296.61447581,0.00016338,2]
[326488844,1714997446697,-620.01396641,0.00016346,2]
[326488845,1714997446706,-1090.47999972,0.00016436,2]
[326488846,1714997446717,-908.757849,0.00016436,2]
[326488847,1714997446730,-599.82420773,0.00016436,2]
[326488848,1714997446739,-213.89277759,0.00016436,2]
[326488849,1714997446748,-57.41390041,0.00016436,2]
[326488850,1714997446763,-113.54468717,0.00016436,2]
[326488851,1714997446772,-285.98727736,0.00016436,2]
[326488852,1714997446782,-163.58751027,0.00016436,2]
[326488853,1714997446791,-200.0,0.00016436,2]
[326488854,1714997446802,-162.88360727,0.00016436,2]
[326488855,1714997446811,-266.29585343,0.00016436,2]
[326488856,1714997446821,-92.8210645,0.00016436,2]
[326488857,1714997446833,-62.40429501,0.00016436,2]
[326488858,1714997446842,-248.28787751,0.00016436,2]
[326488859,1714997446852,-162.56393498,0.00016436,2]
[326488860,1714997446861,-155.42001107,0.00016436,2]
[326488861,1714997446871,-1042.34181435,0.00016436,2]
[326488862,1714997446881,-8.33797926,0.00016436,2]
[326488863,1714997446892,-147.26858368,0.00016436,2]
[326488864,1714997446901,-185.89806717,0.00016436,2]
[326488865,1714997446911,-1471.15677215,0.00016437,2]
[326488866,1714997446923,-3012.47132687,0.00016437,2]
[326488867,1714997446935,-1330.47961267,0.00016437,2]
[326488868,1714997446945,-265.88512663,0.00016437,2]
[326488869,1714997446954,-188.63526071,0.00016437,2]
[326488870,1714997446967,-88.61690698,0.00016437,2]
[326488871,1714997446976,-160.0,0.00016437,2]
[326488872,1714997446985,-199.99964474,0.00016437,2]
[326488873,1714997446995,-500.0,0.00016438,2]
[326488874,1714997447004,-500.0,0.00016438,2]
[326488875,1714997447013,-500.91416067,0.00016438,2]
[326488876,1714997447023,-501.39790612,0.00016438,2]
[326488877,1714997447034,-529.59,0.00016438,2]
[326488878,1714997447043,-500.0,0.00016438,2]
[326488879,1714997447059,-250.9072462,0.00016438,2]
[326488880,1714997447076,-249.0927538,0.00016438,2]
[326488881,1714997447087,-421.54430056,0.00016438,2]
[326488882,1714997481745,1493.3459025,9.999e-05,2]
[326488883,1714997488648,12540.54336759,9.999e-05,2]
[326488884,1714997488682,3572.48121595,9.999e-05,2]
[326488885,1714997885878,447.00329869,9.999e-05,2]
[326488886,1714998324011,447.00329869,9.999e-05,2]
[326488887,1714998363322,-13154.8,0.00014909,2]
[326488888,1714998486623,1005.24,0.00026672,120]
[326488889,1714998510043,-6641.52,0.00014909,2]
[326488890,1714998510090,1627.58813695,0.0002,19]
[326488909,1714998635306,-447.00329869,0.00014808,2]
[326488910,1714998635317,-157.54689482,0.00014809,2]
[326488911,1714998635326,-2212.82395229,0.00014909,2]
[326488912,1714998635338,-1811.81488496,0.00014909,2]
[326488928,1714998639098,-995.26725001,0.00014909,2]
[326488929,1714998639110,-83.77391274,0.00014909,2]
[326488930,1714998639120,-1109.90002686,0.00015,2]
[326488952,1714998647290,-993.58556279,0.00015,2]
[326488953,1714998647300,-238.542365,0.00015101,2]
[326488954,1714998647312,-892.12007732,0.00015295,5]
[326488955,1714998647326,-581.68038362,0.00015295,5]
[326488969,1714998653678,-294.38082405,0.000137,2]
[326488970,1714998653688,-1881.78834853,0.00014999,2]
[326488971,1714998653699,-774.17561846,0.00015295,5]
[326488972,1714998653709,-477.02635,0.0001589,2]
[326488973,1714998653718,-153.0,0.000159,2]
[326488974,1714998653727,-153.942143,0.000159,2]
[326488975,1714998653740,-153.0,0.00015952,2]
[326488976,1714998653749,-6558.50972248,0.00016,2]
[326488977,1714998653760,-845.7732919,0.00016337,2]
[326488978,1714998757458,522.62516636,9.999e-05,2]
[326488979,1714998789863,154.73694719,9.999e-05,2]
[326488981,1714999104719,447.00329869,9.999e-05,2]
[326488982,1714999223248,400.87695449,0.000125,2]
[326488983,1714999359991,1042.71154476,9.999e-05,2]
[326488985,1714999458496,154.73694719,9.999e-05,2]
[326488986,1714999472779,154.73694719,9.999e-05,2]
[326488987,1714999475937,1347.83105685,9.999e-05,2]
[326488988,1714999591716,447.00329869,9.999e-05,2]
[326488989,1714999705938,-12995.6,0.00014347,2]
[326488990,1714999736353,-7211.32,0.00014347,2]
[326488991,1714999767597,24468.52961832,0.00014,7]
[326489046,1714999839394,-4400.0,0.00014,7]
[326489048,1714999839637,-67.75395935,0.00014,7]
[326489051,1714999839647,-4693.08,0.00014347,2]
[326489053,1714999839657,-447.00329869,0.00014512,2]
[326489054,1714999839667,-236.971289,0.00014513,2]
[326489056,1714999839676,-1078.0869273,0.00014657,2]
[326489058,1714999839686,-2395.29274351,0.0001509,2]
[326489060,1714999839696,-7665.76135623,0.00015091,2]
[326489062,1714999839712,-153.0,0.00015978,2]
[326489064,1714999839722,-181.66450503,0.00016238,2]
[326489066,1714999839732,-181.66450502,0.00016263,2]
[326489068,1714999839743,-5000.0,0.000163,2]
[326489070,1714999839753,-620.00069832,0.00016305,2]
[326489072,1714999839764,-1000.0,0.00016337,2]
[326489074,1714999839773,-1000.0,0.00016337,2]
[326489076,1714999839783,-14638.12380436,0.00016338,2]
[326489123,1714999841101,-181.66450502,0.00016288,2]
[326489124,1714999841111,-808.04649498,0.00016338,2]
[326489125,1714999841124,-993.7703,0.00016338,2]
[326489126,1714999841137,-5482.35535905,0.00016338,2]
[326489244,1714999846218,-181.66450502,0.00016313,2]
[326489245,1714999846228,-181.66450502,0.00016338,2]
[326489246,1714999846238,-33632.70404161,0.00016338,2]
[326489247,1714999846249,-2000.0,0.00016338,2]
[326489248,1714999846259,-155.612097,0.00016398,2]
[326489249,1714999846269,-275.52896668,0.00016398,2]
[326489250,1714999846280,-1207.49382102,0.00016398,2]
[326489251,1714999846289,-1041.97208394,0.00016399,2]
[326489252,1714999846299,-237.22520122,0.00016399,2]
[326489253,1714999846309,-414.1528315,0.000164,2]
[326489254,1714999846318,-40436.25024416,0.000164,2]
[326489255,1714999846330,-2564.84556915,0.000164,2]
[326489279,1714999848112,-1270.0,0.000164,2]
[326489280,1714999848153,-5780.18513045,0.000164,2]
[326489282,1714999855246,271.34601463,0.000131,2]
[326489283,1714999856623,1687.55398537,0.000131,2]
[326489285,1715000030992,3199.66082188,9.999e-05,2]
[326489286,1715000304697,447.00329869,9.999e-05,2]
[326489287,1715000548698,4929.0,0.0001289,2]
[326489288,1715000616354,-150.71364408,0.00022836,30]
[326489289,1715000666690,-154.06,0.00024084,35]
[326489290,1715000667049,-249.0,0.00024084,35]
[326489291,1715000667113,-249.0,0.00024084,35]
[326489292,1715000667169,-249.0,0.0002409,35]
[326489293,1715000667227,-251.49,0.0002409,35]
[326489294,1715000667280,-249.0,0.00024094,35]
[326489295,1715000667509,-249.0,0.00024094,35]
[326489296,1715000667564,-249.0,0.000241,35]
[326489297,1715000667620,-249.0,0.000241,35]
[326489298,1715000667670,-150.5,0.00024104,35]
[326489299,1715000667723,-216.6,0.00024104,35]
[326489300,1715000667775,-153.29,0.00024104,35]
[326489301,1715000667827,-235.52,0.00024104,35]
[326489302,1715000667879,-249.0,0.00024104,35]
[326489303,1715000667933,-249.0,0.00024104,35]
[326489304,1715000667985,-156.33,0.00024114,35]
[326489305,1715000668039,-150.5,0.00024124,35]
[326489306,1715000668090,-281.74,0.0002418,35]
[326489307,1715000668142,-150.5,0.00024637,35]
[326489308,1715000668295,-150.5,0.00024637,35]
[326489309,1715000668331,-150.5,0.00024647,35]
[326489310,1715000668365,-150.5,0.00024647,35]
[326489311,1715000668399,-150.5,0.00024647,35]
[326489312,1715000668461,-479.55775647,0.00026,30]
[326489313,1715000668514,-9317.74860702,0.00027,40]
[326489314,1715000699373,-447.00329869,0.00014026,2]
[326489315,1715000699953,-24900.0,0.00014027,2]
[326489316,1715000700329,-236.971289,0.00014324,2]
[326489317,1715000700765,-271.3460147,0.00014374,2]
[326489318,1715000701110,-184.1346739,0.00015178,2]
[326489319,1715000701170,-59281.35797684,0.00015277,2]
[326489320,1715000701225,-184.13467388,0.00015564,2]
[326489321,1715000701285,-453.175032,0.0001589,2]
[326489322,1715000701342,-184.13467388,0.0001595,2]
[326489323,1715000701548,-164.18627884,0.00016237,2]
[326489324,1715000701599,-250.1968684,0.00016238,2]
[326489325,1715000701650,-1000.0,0.00016299,2]
[326489326,1715000701702,-5000.0,0.000163,2]
[326489327,1715000702193,-189.98106708,0.00016336,2]
[326489328,1715000702879,-184.13467388,0.00016336,2]
[326489329,1715000702932,-1000.0,0.00016337,2]
[326489330,1715000702984,-1211.89267204,0.00016338,2]
[326489331,1715000703040,-55555.0,0.00016338,2]
[326489332,1715000703264,-1000.0,0.00016399,2]
[326489333,1715000704091,-1000.0,0.00016399,2]
[326489334,1715000704872,-33396.03146149,0.000164,2]
[326489335,1715000706020,-46003.31677261,0.000164,2]
[326489336,1715000706175,-151.0,0.000164,2]
[326489337,1715000706227,-187.387401,0.000164,2]
[326489338,1715000706286,-500.0,0.00016435,2]
[326489339,1715000706341,-1994.70287727,0.00016436,2]
[326489340,1715000706394,-407.2669355,0.00016436,2]
[326489341,1715000706489,-186.8781699,0.00016436,2]
[326489342,1715000706546,-3054.9715797,0.00016436,2]
[326489343,1715000706601,-405.75376683,0.00016436,2]
[326489344,1715000706906,-379.70928376,0.00016436,2]
[326489345,1715000707314,-1881.44054013,0.00016436,2]
[326489346,1715000707371,-421.42495609,0.00016436,2]
[326489347,1715000707422,-1168.44455285,0.00016436,2]
[326489348,1715000707476,-503.23850356,0.00016436,2]
[326489349,1715000707529,-1101.9664793,0.00016436,2]
[326489350,1715000707671,-154.79877704,0.00016436,2]
[326489351,1715000707729,-156.6562281,0.00016436,2]
[326489352,1715000707782,-820.44886134,0.00016436,2]
[326489353,1715000707831,-154.7215013,0.00016436,2]
[326489354,1715000707885,-155.41259984,0.00016436,2]
[326489355,1715000707941,-151.0,0.00016436,2]
[326489356,1715000707995,-263.258635,0.00016436,2]
[326489357,1715000708324,-151.0,0.00016436,2]
[326489358,1715000708584,-151.0,0.00016436,2]
[326489359,1715000708634,-151.0,0.00016436,2]
[326489360,1715000708687,-598.55428,0.00016436,2]
[326489361,1715000708741,-151.0,0.00016436,2]
[326489362,1715000708999,-598.55428,0.00016436,2]
[326489363,1715000709155,-216.482121,0.00016436,2]
[326489364,1715000709423,-216.482121,0.00016436,2]
[326489365,1715000709473,-151.0,0.00016436,2]
[326489366,1715000709521,-151.0,0.00016436,2]
[326489367,1715000709571,-1755.350214,0.00016436,2]
[326489368,1715000709625,-1755.350214,0.00016436,2]
[326489369,1715000709674,-626.642282,0.00016436,2]
[326489370,1715000709724,-626.642282,0.00016436,2]
[326489371,1715000709835,-234.345776,0.00016436,2]
[326489372,1715000709888,-151.0,0.00016436,2]
[326489373,1715000709941,-151.0,0.00016436,2]
[326489374,1715000709994,-3784.469169,0.00016436,2]
[326489375,1715000710046,-3784.469169,0.00016436,2]
[326489376,1715000710354,-3784.469169,0.00016436,2]
[326489377,1715000710625,-3784.469169,0.00016436,2]
[326489378,1715000710681,-151.0,0.00016436,2]
[326489379,1715000710738,-151.0,0.00016436,2]
[326489380,1715000710794,-151.0,0.00016436,2]
[326489381,1715000710850,-151.0,0.00016436,2]
[326489382,1715000710907,-631.281898,0.00016436,2]
[326489383,1715000710962,-631.281898,0.00016436,2]
[326489384,1715000711041,-794.63379142,0.00016437,2]
[326489385,1715000711095,-626.642282,0.00016437,2]
[326489386,1715000711151,-626.642282,0.00016437,2]
[326489387,1715000711205,-151.0,0.00016437,2]
[326489388,1715000711258,-151.0,0.00016437,2]
[326489389,1715000712028,-151.0,0.00016437,2]
[326489390,1715000712081,-151.0,0.00016437,2]
[326489391,1715000712135,-631.281898,0.00016437,2]
[326489392,1715000712192,-631.281898,0.00016437,2]
[326489393,1715000712276,-160.0,0.00016437,2]
[326489394,1715000712360,-160.0,0.00016437,2]
[326489395,1715000712431,-500.0,0.00016438,2]
[326489396,1715000712508,-500.0,0.00016438,2]
[326489397,1715000712575,-500.0,0.00016438,2]
[326489398,1715000712644,-507.94242711,0.00016438,2]
[326489399,1715000712714,-626.88,0.00016438,2]
[326489400,1715000712782,-500.0,0.00016438,2]
[326489401,1715000712849,-500.0,0.00016438,2]
[326489402,1715000713221,-555.17,0.00016438,2]
[326489403,1715000713464,-390.98772267,0.00016438,2]
[326489404,1715000715170,-500.0,0.00016438,2]
[326489405,1715000716396,-621.0,0.00016438,2]
[326489406,1715000716865,-500.0,0.00016438,2]
[326489407,1715000716949,-500.0,0.00016438,2]
[326489408,1715000717221,-618.57,0.00016438,2]
[326489409,1715000717587,-500.0,0.00016438,2]
[326489410,1715000717949,-500.0,0.00016438,2]
[326489411,1715000718002,-500.0,0.00016438,2]
[326489412,1715000718053,-500.0,0.00016438,2]
[326489413,1715000718103,-500.0,0.00016438,2]
[326489414,1715000718156,-500.0,0.00016438,2]
[326489415,1715000718306,-500.0,0.00016438,2]
[326489416,1715000718434,-500.0,0.00016438,2]
[326489417,1715000718866,-500.0,0.00016438,2]
[326489418,1715000720182,-500.0,0.00016438,2]
[326489419,1715000720469,-589.93,0.00016438,2]
[326489420,1715000720520,-500.0,0.00016438,2]
[326489421,1715000720570,-276.29159395,0.00016438,2]
[326489422,1715000720620,-815.33,0.00016438,2]
[326489423,1715000720669,-846.49,0.00016438,2]
[326489424,1715000720721,-500.0,0.00016438,2]
[326489425,1715000720771,-500.0,0.00016438,2]
[326489426,1715000720824,-500.0,0.00016438,2]
[326489427,1715000720877,-500.0,0.00016438,2]
[326489428,1715000720930,-500.0,0.00016438,2]
[326489429,1715000721437,-500.0,0.00016438,2]
[326489430,1715000721737,-500.0,0.00016438,2]
[326489431,1715000721790,-500.0,0.00016438,2]
[326489432,1715000721842,-500.0,0.00016438,2]
[326489433,1715000721892,-500.0,0.00016438,2]
[326489434,1715000721943,-500.0,0.00016438,2]
[326489435,1715000722124,-500.0,0.00016438,2]
[326489436,1715000722873,-500.0,0.00016438,2]
[326489437,1715000723235,-500.0,0.00016438,2]
[326489438,1715000723428,-500.0,0.00016438,2]
[326489439,1715000723937,-500.0,0.00016438,2]
[326489440,1715000724307,-500.0,0.00016438,2]
[326489441,1715000725104,-500.0,0.00016438,2]
[326489442,1715000725648,-500.0,0.00016438,2]
[326489443,1715000726012,-500.0,0.00016438,2]
[326489444,1715000726771,-500.0,0.00016438,2]
[326489445,1715000727156,-500.0,0.00016438,2]
[326489446,1715000727607,-612.51349338,0.00016438,2]
[326489447,1715000728448,-500.91416067,0.00016438,2]
[326489448,1715000729234,-507.6342433,0.00016438,2]
[326489449,1715000729330,-500.0,0.00016438,2]
[326489450,1715000729383,-500.0,0.00016438,2]
[326489451,1715000729435,-500.0,0.00016438,2]
[326489452,1715000729484,-500.0,0.00016438,2]
[326489453,1715000729536,-501.39790612,0.00016438,2]
[326489454,1715000729589,-552.39,0.00016438,2]
[326489455,1715000729731,-278.62713299,0.00016438,2]
[326489456,1715000729783,-500.0,0.00016438,2]
[326489457,1715000729835,-500.0,0.00016438,2]
[326489458,1715000730313,-1092.47,0.00016438,2]
[326489459,1715000730775,-151.0,0.00016438,2]
[326489460,1715000731130,-500.0,0.00016438,2]
[326489461,1715000731240,-151.0,0.00016438,2]
[326489462,1715000732938,-151.0,0.00016438,2]
[326489463,1715000735262,-500.0,0.00016438,2]
[326489464,1715000736038,-151.0,0.00016438,2]
[326489465,1715000737299,-151.0,0.00016438,2]
[326489466,1715000738080,-500.0,0.00016438,2]
[326489467,1715000739175,-151.0,0.00016438,2]
[326489468,1715000740021,-281.129689,0.00016438,2]
[326489469,1715000740298,-500.0,0.00016438,2]
[326489470,1715000740352,-530.28498694,0.00016438,2]
[326489471,1715000740407,-505.54100582,0.00016438,2]
[326489472,1715000740463,-593.5592765,0.00016438,2]
[326489473,1715000740519,-500.0,0.00016438,2]
[326489474,1715000740575,-1291.37,0.00016438,2]
[326489475,1715000740628,-500.0,0.00016438,2]
[326489476,1715000740679,-500.0,0.00016438,2]
[326489477,1715000740734,-500.0,0.00016438,2]
[326489478,1715000740793,-500.0,0.00016438,2]
[326489479,1715000741204,-500.0,0.00016438,2]
[326489480,1715000741262,-151.0,0.00016438,2]
[326489481,1715000741422,-500.0,0.00016438,2]
[326489482,1715000741479,-500.0,0.00016438,2]
[326489483,1715000741539,-500.0,0.00016438,2]
[326489484,1715000741591,-500.0,0.00016438,2]
[326489485,1715000741642,-500.0,0.00016438,2]
[326489486,1715000741693,-500.0,0.00016438,2]
[326489487,1715000741745,-500.0,0.00016438,2]
[326489488,1715000741795,-500.0,0.00016438,2]
[326489489,1715000741844,-228.80277303,0.00016438,2]
[326489490,1715000741894,-464.74718437,0.00016438,2]
[326489491,1715000741945,-500.0,0.00016438,2]
[326489492,1715000741996,-709.95,0.00016438,2]
[326489493,1715000742046,-500.0,0.00016438,2]
[326489494,1715000742097,-851.48,0.00016438,2]
[326489495,1715000742238,-500.0,0.00016438,2]
[326489496,1715000742294,-528.75,0.00016438,2]
[326489497,1715000742347,-172.998792,0.00016438,2]
[326489498,1715000742399,-172.998792,0.00016438,2]
[326489499,1715000742453,-571.96,0.00016438,2]
[326489500,1715000742644,-172.998792,0.00016438,2]
[326489501,1715000742696,-172.998792,0.00016438,2]
[326489502,1715000742748,-172.998792,0.00016438,2]
[326489503,1715000742800,-500.0,0.00016438,2]
[326489504,1715000742852,-172.998792,0.00016438,2]
[326489505,1715000742903,-172.998792,0.00016438,2]
[326489506,1715000743052,-172.998792,0.00016438,2]
[326489507,1715000743106,-172.998792,0.00016438,2]
[326489508,1715000743254,-172.998792,0.00016438,2]
[326489509,1715000743429,-172.998792,0.00016438,2]
[326489510,1715000743482,-172.998792,0.00016438,2]
[326489511,1715000743536,-172.998792,0.00016438,2]
[326489512,1715000743577,-172.998792,0.00016438,2]
[326489513,1715000743860,-172.998792,0.00016438,2]
[326489514,1715000743911,-172.998792,0.00016438,2]
[326489515,1715000743945,-172.998792,0.00016438,2]
[326489516,1715000743979,-172.998792,0.00016438,2]
[326489517,1715000744025,-172.998792,0.00016438,2]
[326489518,1715000744277,-933.241295,0.00016438,2]
[326489519,1715000744688,-172.998792,0.00016438,2]
[326489520,1715000745142,-933.241295,0.00016438,2]
[326489521,1715000746154,-933.241295,0.00016438,2]
[326489522,1715000747085,-933.241295,0.00016438,2]
[326489523,1715000747899,-933.241295,0.00016438,2]
[326489524,1715000748101,-933.241295,0.00016438,2]
[326489525,1715000748505,-500.0,0.00016438,2]
[326489526,1715000748877,-933.241295,0.00016438,2]
[326489527,1715000749582,-933.241295,0.00016438,2]
[326489528,1715000750238,-933.241295,0.00016438,2]
[326489529,1715000750304,-933.241295,0.00016438,2]
[326489530,1715000750355,-933.241295,0.00016438,2]
[326489531,1715000750412,-933.241295,0.00016438,2]
[326489532,1715000750466,-933.241295,0.00016438,2]
[326489533,1715000750518,-151.0,0.00016438,2]
[326489534,1715000750662,-531.36,0.00016438,2]
[326489535,1715000750715,-500.0,0.00016438,2]
[326489536,1715000750768,-500.0,0.00016438,2]
[326489537,1715000750822,-933.241295,0.00016438,2]
[326489538,1715000750874,-933.241295,0.00016438,2]
[326489539,1715000750925,-933.241295,0.00016438,2]
[326489540,1715000750977,-933.241295,0.00016438,2]
[326489541,1715000751030,-933.241295,0.00016438,2]
[326489542,1715000751082,-933.241295,0.00016438,2]
[326489543,1715000751134,-933.241304,0.00016438,2]
[326489544,1715000751186,-380.61823177,0.00016438,2]
[326489545,1715000751238,-500.0,0.00016438,2]
[326489546,1715000751295,-500.0,0.00016438,2]
[326489547,1715000751441,-653.27,0.00016438,2]
[326489548,1715000751493,-500.0,0.00016438,2]
[326489549,1715000751546,-585.2629,0.00016438,2]
[326489550,1715000751598,-585.2629,0.00016438,2]
[326489551,1715000751650,-500.0,0.00016438,2]
[326489552,1715000751702,-585.2629,0.00016438,2]
[326489553,1715000751755,-585.2629,0.00016438,2]
[326489554,1715000751805,-585.2629,0.00016438,2]
[326489555,1715000751857,-585.2629,0.00016438,2]
[326489556,1715000751952,-585.2629,0.00016438,2]
[326489557,1715000752004,-585.2629,0.00016438,2]
[326489558,1715000752057,-585.2629,0.00016438,2]
[326489559,1715000752108,-585.2629,0.00016438,2]
[326489560,1715000752160,-585.2629,0.00016438,2]
[326489561,1715000752305,-585.2629,0.00016438,2]
[326489562,1715000753214,-585.2629,0.00016438,2]
[326489563,1715000753744,-585.2629,0.00016438,2]
[326489564,1715000754085,-676.9,0.00016438,2]
[326489565,1715000754174,-585.2629,0.00016438,2]
[326489566,1715000755027,-585.2629,0.00016438,2]
[326489567,1715000756057,-585.2629,0.00016438,2]
[326489568,1715000756824,-585.2629,0.00016438,2]
[326489569,1715000757198,-500.0,0.00016438,2]
[326489570,1715000757934,-585.2629,0.00016438,2]
[326489571,1715000758882,-500.0,0.00016438,2]
[326489572,1715000758952,-585.262899,0.00016438,2]
[326489573,1715000759255,-500.0,0.00016438,2]
[326489574,1715000759681,-500.0,0.00016438,2]
[326489575,1715000759891,-500.0,0.00016438,2]
[326489576,1715000759943,-500.0,0.00016438,2]
[326489577,1715000759996,-250.9072462,0.00016438,2]
[326489578,1715000760047,-500.0,0.00016438,2]
[326489579,1715000760099,-500.0,0.00016438,2]
[326489580,1715000760150,-500.0,0.00016438,2]
[326489581,1715000760203,-500.0,0.00016438,2]
[326489582,1715000760311,-508.35,0.00016438,2]
[326489583,1715000760363,-547.03,0.00016438,2]
[326489584,1715000760420,-485.34535426,0.00016438,2]
[326489585,1715000760472,-500.0,0.00016438,2]
[326489586,1715000760532,-500.0,0.00016438,2]
[326489587,1715000760680,-500.0,0.00016438,2]
[326489588,1715000760758,-151.0,0.00016438,2]
[326489589,1715000760812,-151.0,0.00016438,2]
[326489590,1715000760866,-151.0,0.00016438,2]
[326489591,1715000760918,-151.0,0.00016438,2]
[326489592,1715000760972,-151.0,0.00016438,2]
[326489593,1715000761029,-151.0,0.00016438,2]
[326489594,1715000761079,-1137.64,0.00016438,2]
[326489595,1715000761168,-151.0,0.00016438,2]
[326489596,1715000761221,-151.0,0.00016438,2]
[326489597,1715000761277,-151.0,0.00016438,2]
[326489598,1715000761331,-500.0,0.00016438,2]
[326489599,1715000761384,-631.86,0.00016438,2]
[326489600,1715000761531,-500.0,0.00016438,2]
[326489601,1715000761754,-151.0,0.00016438,2]
[326489602,1715000761807,-151.0,0.00016438,2]
[326489603,1715000761860,-151.0,0.00016438,2]
[326489604,1715000761912,-151.0,0.00016438,2]
[326489605,1715000761963,-245.0,0.00016438,2]
[326489606,1715000762015,-220.57455421,0.00016438,2]
[326489607,1715000762066,-500.0,0.00016438,2]
[326489608,1715000762118,-151.0,0.00016438,2]
[326489609,1715000762172,-500.0,0.00016438,2]
[326489610,1715000762224,-500.0,0.00016438,2]
[326489611,1715000762277,-300.0,0.00016438,2]
[326489612,1715000762330,-500.0,0.00016438,2]
[326489613,1715000762477,-513.55,0.00016438,2]
[326489614,1715000762804,-500.0,0.00016438,2]
[326489615,1715000762860,-500.0,0.00016438,2]
[326489616,1715000762914,-500.0,0.00016438,2]
[326489617,1715000762969,-1116.66,0.00016438,2]
[326489618,1715000763020,-194.85461622,0.00016438,2]
[326489619,1715000763073,-500.0,0.00016438,2]
[326489620,1715000763126,-569.21,0.00016438,2]
[326489621,1715000763181,-500.0,0.00016438,2]
[326489622,1715000763535,-500.0,0.00016438,2]
[326489623,1715000764276,-500.0,0.00016438,2]
[326489624,1715000764330,-500.0,0.00016438,2]
[326489625,1715000764385,-500.0,0.00016438,2]
[326489626,1715000764439,-500.0,0.00016438,2]
[326489627,1715000764586,-500.0,0.00016438,2]
[326489628,1715000764640,-1645.28,0.00016438,2]
[326489629,1715000765696,-500.0,0.00016438,2]
[326489630,1715000766178,-3037.31,0.00016438,2]
[326489631,1715000766232,-500.0,0.00016438,2]
[326489632,1715000766288,-500.0,0.00016438,2]
[326489633,1715000766345,-500.43031625,0.00016438,2]
[326489634,1715000766397,-500.0,0.00016438,2]
[326489635,1715000766448,-544.41,0.00016438,2]
[326489636,1715000766502,-500.0,0.00016438,2]
[326489637,1715000766556,-763.01,0.00016438,2]
[326489638,1715000766608,-886.98,0.00016438,2]
[326489639,1715000766658,-500.0,0.00016438,2]
[326489640,1715000766801,-500.0,0.00016438,2]
[326489641,1715000766854,-465.91906961,0.00016438,2]
[326489642,1715000766907,-500.0,0.00016438,2]
[326489643,1715000766958,-500.0,0.00016438,2]
[326489644,1715000767012,-500.0,0.00016438,2]
[326489645,1715000767426,-500.0,0.00016438,2]
[326489646,1715000768164,-500.0,0.00016438,2]
[326489647,1715000768615,-788.25,0.00016438,2]
[326489648,1715000768746,-500.0,0.00016438,2]
[326489649,1715000769237,-500.0,0.00016438,2]
[326489650,1715000769986,-500.0,0.00016438,2]
[326489651,1715000770397,-500.0,0.00016438,2]
[326489652,1715000770589,-500.0,0.00016438,2]